fUSD/lending_fUSD_20240404
["ID","MTS","AMOUNT","RATE_DAILY","PERIOD"]
[321459034,1712200303637,-500.0,0.00055342,120]
[321459035,1712200303647,-500.0,0.00055342,120]
[321459036,1712200303656,-603.02,0.00055342,120]
[321459037,1712200303666,-500.0,0.00055342,120]
[321459038,1712200303675,-500.0,0.00055342,120]
[321459039,1712200303684,-516.97,0.00055342,120]
[321459040,1712200303694,-500.0,0.00055342,120]
[321459041,1712200303704,-635.94,0.00055342,120]
[321459042,1712200303713,-151.0,0.00055342,120]
[321459043,1712200303722,-1858.09,0.00055342,120]
[321459044,1712200303731,-1287.0,0.00055342,120]
[321459045,1712200303741,-500.0,0.00055342,120]
[321459046,1712200303750,-256.68965,0.00055342,120]
[321459047,1712200303760,-500.0,0.00055342,120]
[321459048,1712200303769,-912.58,0.00055342,80]
[321459049,1712200303779,-500.0,0.00055342,120]
[321459050,1712200303789,-1134.63,0.00055342,120]
[321459051,1712200303798,-867.47,0.00055342,120]
[321459052,1712200303807,-500.0,0.00055342,120]
[321459053,1712200303817,-500.0,0.00055342,120]
[321459054,1712200303827,-1123.8,0.00055342,120]
[321459055,1712200303836,-956.39,0.00055342,120]
[321459056,1712200303851,-500.0,0.00055342,120]
[321459057,1712200303861,-151.0,0.00055342,120]
[321459058,1712200303873,-500.0,0.00055342,120]
[321459059,1712200303883,-500.0,0.00055342,120]
[321459060,1712200303893,-1178.01,0.00055342,120]
[321459061,1712200303902,-500.0,0.00055342,120]
[321459062,1712200303913,-500.0,0.00055342,120]
[321459063,1712200303923,-500.0,0.00055342,120]
[321459064,1712200303933,-523.32667379,0.00055342,120]
[321459065,1712200303943,-354.097611,0.00055342,120]
[321459066,1712200303953,-1765.04,0.00055342,120]
[321459067,1712200303963,-500.0,0.00055342,120]
[321459068,1712200303972,-500.0,0.00055342,120]
[321459069,1712200303982,-500.0,0.00055342,120]
[321459070,1712200303991,-699.49,0.00055342,120]
[321459071,1712200304001,-1601.82,0.00055342,120]
[321459072,1712200304011,-354.097611,0.00055342,120]
[321459073,1712200304020,-500.0,0.00055342,120]
[321459074,1712200304030,-1123.23,0.00055342,120]
[321459075,1712200304039,-500.0,0.00055342,120]
[321459076,1712200304049,-1306.97,0.00055342,120]
[321459077,1712200304058,-537.77257341,0.00055342,120]
[321459078,1712200304068,-500.0,0.00055342,120]
[321459079,1712200304077,-500.0,0.00055342,120]
[321459080,1712200304089,-541.76,0.00055342,120]
[321459081,1712200304099,-376.8905371,0.00055342,120]
[321459082,1712200304110,-596.77745536,0.00055342,120]
[321459083,1712200304120,-1622.05,0.00055342,120]
[321459084,1712200304129,-151.0,0.00055342,60]
[321459085,1712200304140,-715.64,0.00055342,120]
[321459086,1712200304150,-654.96,0.00055342,120]
[321459087,1712200304160,-782.49,0.00055342,120]
[321459088,1712200304170,-646.89,0.00055342,120]
[321459089,1712200304179,-500.0,0.00055342,120]
[321459090,1712200304188,-500.0,0.00055342,120]
[321459091,1712200304198,-500.0,0.00055342,120]
[321459092,1712200304207,-552.63269762,0.00055342,120]
[321459093,1712200304217,-856.28,0.00055342,120]
[321459094,1712200304227,-500.0,0.00055342,120]
[321459095,1712200304236,-1403.71,0.00055342,120]
[321459096,1712200304246,-625.50234299,0.00055342,120]
[321459097,1712200304257,-699.19,0.00055342,120]
[321459098,1712200304267,-613.76912023,0.00055342,120]
[321459099,1712200304278,-510.7,0.00055342,120]
[321459100,1712200304287,-500.0,0.00055342,120]
[321459101,1712200304297,-500.0,0.00055342,120]
[321459102,1712200304307,-500.0,0.00055342,120]
[321459103,1712200304319,-151.0,0.00055342,120]
[321459104,1712200304328,-500.0,0.00055342,120]
[321459105,1712200304340,-1770.64,0.00055342,120]
[321459106,1712200304350,-443.05338062,0.00055342,120]
[321459107,1712200304359,-500.0,0.00055342,120]
[321459108,1712200304369,-500.0,0.00055342,120]
[321459109,1712200304378,-500.0,0.00055342,2]
[321459110,1712200304387,-500.0,0.00055342,120]
[321459111,1712200304397,-1207.23,0.00055342,30]
[321459112,1712200304406,-500.0,0.00055342,120]
[321459113,1712200304416,-198.86149,0.00055342,120]
[321459114,1712200304425,-500.0,0.00055342,120]
[321459115,1712200304435,-500.0,0.00055342,120]
[321459116,1712200304444,-897.12,0.00055342,120]
[321459117,1712200304454,-198.86149,0.00055342,120]
[321459118,1712200304463,-500.0,0.00055342,120]
[321459119,1712200304473,-500.0,0.00055342,120]
[321459120,1712200304483,-500.0,0.00055342,60]
[321459121,1712200304493,-940.76,0.00055342,120]
[321459122,1712200304504,-500.0,0.00055342,120]
[321459123,1712200304514,-511.27,0.00055342,120]
[321459124,1712200304524,-500.0,0.00055342,120]
[321459125,1712200304534,-500.0,0.00055342,120]
[321459126,1712200304543,-500.0,0.00055342,120]
[321459127,1712200304554,-1291.56,0.00055342,120]
[321459128,1712200304563,-500.0,0.00055342,120]
[321459129,1712200304573,-500.0,0.00055342,120]
[321459130,1712200304584,-1169.61,0.00055342,120]
[321459131,1712200304598,-151.0,0.00055342,120]
[321459132,1712200304608,-1966.91,0.00055342,120]
[321459133,1712200304618,-653.18,0.00055342,120]
[321459134,1712200304628,-579.59,0.00055342,120]
[321459135,1712200304638,-888.0,0.00055342,120]
[321459136,1712200304648,-1199.82,0.00055342,120]
[321459137,1712200304660,-500.0,0.00055342,120]
[321459138,1712200304670,-500.0,0.00055342,120]
[321459139,1712200304679,-567.67,0.00055342,120]
[321459140,1712200304689,-500.0,0.00055342,120]
[321459141,1712200304698,-500.0,0.00055342,120]
[321459142,1712200304708,-1162.9,0.00055342,120]
[321459143,1712200304717,-500.0,0.00055342,120]
[321459144,1712200304727,-1481.02,0.00055342,120]
[321459145,1712200304737,-957.29,0.00055342,120]
[321459146,1712200304746,-536.12,0.00055342,120]
[321459147,1712200304756,-185.406329,0.00055342,120]
[321459148,1712200304765,-628.45,0.00055342,120]
[321459149,1712200304775,-702.57,0.00055342,120]
[321459150,1712200304784,-532.29,0.00055342,120]
[321459151,1712200304794,-342.63924176,0.00055342,120]
[321459152,1712200304803,-500.0,0.00055342,120]
[321459153,1712200304813,-507.96293799,0.00055342,120]
[321459154,1712200304823,-185.406329,0.00055342,120]
[321459155,1712200304833,-1230.49,0.00055342,120]
[321459156,1712200304846,-500.0,0.00055342,120]
[321459157,1712200304856,-500.0,0.00055342,120]
[321459158,1712200304867,-500.0,0.00055342,120]
[321459159,1712200304877,-1354.79,0.00055342,120]
[321459160,1712200304886,-500.0,0.00055342,120]
[321459161,1712200304896,-500.0,0.00055342,120]
[321459162,1712200304905,-540.40805343,0.00055342,120]
[321459163,1712200304915,-500.0,0.00055342,120]
[321459164,1712200304929,-522.40385917,0.00055342,120]
[321459165,1712200304941,-301.37188366,0.00055342,120]
[321459166,1712200304955,-594.72,0.00055342,120]
[321459167,1712200304967,-1168.31,0.00055342,120]
[321459168,1712200304977,-745.92,0.00055342,120]
[321459169,1712200304987,-519.19,0.00055342,120]
[321459170,1712200304997,-510.35,0.00055342,120]
[321459171,1712200305007,-500.0,0.00055342,120]
[321459172,1712200305017,-500.0,0.00055342,120]
[321459173,1712200305027,-538.5,0.00055342,120]
[321459174,1712200305037,-500.0,0.00055342,120]
[321459175,1712200305047,-500.0,0.00055342,120]
[321459176,1712200305057,-1661.46,0.00055342,120]
[321459177,1712200305067,-500.0,0.00055342,120]
[321459178,1712200305077,-810.25,0.00055342,120]
[321459179,1712200305088,-500.0,0.00055342,120]
[321459180,1712200305098,-500.0,0.00055342,120]
[321459181,1712200305109,-519.32,0.00055342,120]
[321459182,1712200305119,-856.61,0.00055342,120]
[321459183,1712200305129,-500.0,0.00055342,120]
[321459184,1712200305139,-1000.0,0.00055342,120]
[321459185,1712200305149,-193.775026,0.00055342,120]
[321459186,1712200305159,-1325.1,0.00055342,120]
[321459187,1712200305169,-500.0,0.00055342,120]
[321459188,1712200305179,-150.0,0.00055342,120]
[321459189,1712200305190,-500.0,0.00055342,120]
[321459190,1712200305201,-193.775026,0.00055342,120]
[321459191,1712200305211,-1704.02,0.00055342,120]
[321459192,1712200305222,-843.85,0.00055342,120]
[321459193,1712200305232,-500.0,0.00055342,120]
[321459194,1712200305243,-500.0,0.00055342,120]
[321459195,1712200305253,-734.5,0.00055342,120]
[321459196,1712200305263,-500.0,0.00055342,120]
[321459197,1712200305274,-1242.09,0.00055342,120]
[321459198,1712200305284,-500.0,0.00055342,120]
[321459199,1712200305295,-500.0,0.00055342,120]
[321459200,1712200305305,-500.0,0.00055342,120]
[321459201,1712200305315,-1149.11,0.00055342,120]
[321459202,1712200305325,-500.0,0.00055342,120]
[321459203,1712200305336,-801.39,0.00055342,120]
[321459204,1712200305348,-500.0,0.00055342,120]
[321459205,1712200305358,-636.22,0.00055342,120]
[321459206,1712200305368,-500.0,0.00055342,120]
[321459207,1712200305378,-500.0,0.00055342,120]
[321459208,1712200305388,-500.0,0.00055342,120]
[321459209,1712200305398,-558.05683196,0.00055342,120]
[321459210,1712200305408,-500.0,0.00055342,120]
[321459211,1712200305418,-500.0,0.00055342,120]
[321459212,1712200305429,-1372.43,0.00055342,120]
[321459213,1712200305439,-338.216261,0.00055342,120]
[321459214,1712200305448,-500.0,0.00055342,120]
[321459215,1712200305458,-338.216261,0.00055342,120]
[321459216,1712200305469,-500.0,0.00055342,120]
[321459217,1712200305479,-500.0,0.00055342,120]
[321459218,1712200305489,-500.0,0.00055342,120]
[321459219,1712200305499,-500.0,0.00055342,120]
[321459220,1712200305509,-750.539528,0.00055342,30]
[321459221,1712200305519,-556.7,0.00055342,120]
[321459222,1712200305529,-828.45,0.00055342,120]
[321459223,1712200305539,-690.45,0.00055342,120]
[321459224,1712200305549,-1151.88,0.00055342,120]
[321459225,1712200305559,-500.0,0.00055342,2]
[321459226,1712200305818,-500.0,0.00055342,120]
[321459227,1712200305829,-750.539528,0.00055342,30]
[321459228,1712200305839,-1261.2,0.00055342,120]
[321459229,1712200305849,-223.76888,0.00055342,120]
[321459230,1712200305859,-1473.05,0.00055342,120]
[321459231,1712200305870,-223.76888,0.00055342,120]
[321459232,1712200305879,-500.0,0.00055342,120]
[321459233,1712200305889,-500.0,0.00055342,120]
[321459234,1712200305898,-1240.18,0.00055342,120]
[321459235,1712200305908,-500.0,0.00055342,120]
[321459236,1712200305917,-564.70551835,0.00055342,120]
[321459237,1712200305926,-735.68,0.00055342,120]
[321459238,1712200305936,-151.0,0.00055342,120]
[321459239,1712200305945,-833.51,0.00055342,120]
[321459240,1712200305956,-700.88,0.00055342,120]
[321459241,1712200305966,-1814.63,0.00055342,120]
[321459242,1712200305976,-1000.0,0.00055342,120]
[321459243,1712200305985,-500.0,0.00055342,120]
[321459244,1712200305994,-500.0,0.00055342,120]
[321459245,1712200306003,-500.0,0.00055342,120]
[321459246,1712200306013,-500.0,0.00055342,120]
[321459247,1712200306022,-500.0,0.00055342,120]
[321459248,1712200306031,-500.0,0.00055342,120]
[321459249,1712200306041,-982.74,0.00055342,120]
[321459250,1712200306051,-151.0,0.00055342,120]
[321459251,1712200306060,-979.79,0.00055342,120]
[321459252,1712200306069,-500.0,0.00055342,120]
[321459253,1712200306079,-523.2071084,0.00055342,120]
[321459254,1712200306090,-545.1,0.00055342,120]
[321459255,1712200306099,-560.66,0.00055342,120]
[321459256,1712200306108,-500.0,0.00055342,120]
[321459257,1712200306119,-500.0,0.00055342,120]
[321459258,1712200306130,-618.23,0.00055342,120]
[321459259,1712200306140,-1375.95,0.00055342,120]
[321459260,1712200306150,-547.17623921,0.00055342,120]
[321459261,1712200306160,-741.9,0.00055342,120]
[321459262,1712200306169,-500.0,0.00055342,120]
[321459263,1712200306179,-500.0,0.00055342,120]
[321459264,1712200306189,-500.0,0.00055342,120]
[321459265,1712200306199,-500.0,0.00055342,120]
[321459266,1712200306208,-361.491422,0.00055342,120]
[321459267,1712200306217,-558.42502786,0.00055342,120]
[321459268,1712200306227,-361.491422,0.00055342,120]
[321459269,1712200306237,-508.06805153,0.00055342,120]
[321459270,1712200306247,-1688.43,0.00055342,120]
[321459271,1712200306257,-1668.8,0.00055342,120]
[321459272,1712200306267,-151.0,0.00055342,120]
[321459273,1712200306276,-500.0,0.00055342,120]
[321459274,1712200306287,-1118.0,0.00055342,120]
[321459275,1712200306296,-500.0,0.00055342,120]
[321459276,1712200306306,-500.0,0.00055342,120]
[321459277,1712200306316,-954.25,0.00055342,120]
[321459278,1712200306326,-151.0,0.00055342,120]
[321459279,1712200306335,-519.10730445,0.00055342,120]
[321459280,1712200306346,-500.0,0.00055342,120]
[321459281,1712200306356,-500.0,0.00055342,120]
[321459282,1712200306365,-1884.27,0.00055342,120]
[321459283,1712200306374,-1030.65,0.00055342,120]
[321459284,1712200306383,-500.0,0.00055342,120]
[321459285,1712200306392,-619.94,0.00055342,120]
[321459286,1712200306401,-1616.86,0.00055342,120]
[321459287,1712200306411,-500.0,0.00055342,120]
[321459288,1712200306420,-500.0,0.00055342,120]
[321459289,1712200306430,-1251.78,0.00055342,120]
[321459290,1712200306440,-500.0,0.00055342,120]
[321459291,1712200306450,-1329.29,0.00055342,120]
[321459292,1712200306459,-500.0,0.00055342,120]
[321459293,1712200306468,-288.633246,0.00055342,120]
[321459294,1712200306477,-500.0,0.00055342,120]
[321459295,1712200306487,-500.0,0.00055342,120]
[321459296,1712200306496,-585.81555764,0.00055342,120]
[321459297,1712200306505,-288.633246,0.00055342,120]
[321459298,1712200306514,-151.0,0.00055342,120]
[321459299,1712200306524,-896.81,0.00055342,2]
[321459300,1712200306533,-702.32,0.00055342,120]
[321459301,1712200306542,-1181.29,0.00055342,120]
[321459302,1712200306551,-1340.28,0.00055342,120]
[321459303,1712200306560,-500.0,0.00055342,120]
[321459304,1712200306570,-966.98,0.00055342,120]
[321459305,1712200306579,-503.87265995,0.00055342,120]
[321459306,1712200306589,-6357.1,0.00055342,120]
[321459307,1712200306599,-890.32,0.00055342,120]
[321459308,1712200306608,-500.0,0.00055342,120]
[321459309,1712200306617,-516.51526331,0.00055342,120]
[321459310,1712200306627,-500.0,0.00055342,120]
[321459311,1712200306637,-5000.0,0.00055342,120]
[321459312,1712200306647,-500.0,0.00055342,120]
[321459313,1712200306656,-1721.46,0.00055342,120]
[321459314,1712200306665,-1386.12,0.00055342,120]
[321459315,1712200306676,-151.0,0.00055342,120]
[321459316,1712200306686,-500.0,0.00055342,120]
[321459317,1712200306696,-821.48,0.00055342,120]
[321459318,1712200306705,-500.0,0.00055342,120]
[321459319,1712200306716,-579.431877,0.00055342,120]
[321459320,1712200306725,-351.80827378,0.00055342,120]
[321459321,1712200306735,-1947.85,0.00055342,120]
[321459322,1712200306744,-367.74100306,0.00055342,120]
[321459323,1712200306754,-579.431877,0.00055342,120]
[321459324,1712200306763,-500.0,0.00055342,120]
[321459325,1712200306773,-500.0,0.00055342,120]
[321459326,1712200306782,-500.0,0.00055342,120]
[321459327,1712200306792,-1400.11,0.00055342,120]
[321459328,1712200306801,-1219.29,0.00055342,120]
[321459329,1712200306810,-500.0,0.00055342,120]
[321459330,1712200306820,-500.0,0.00055342,120]
[321459331,1712200306829,-500.0,0.00055342,120]
[321459332,1712200306840,-500.0,0.00055342,120]
[321459333,1712200306850,-2098.39,0.00055342,120]
[321459334,1712200306859,-1116.96,0.00055342,120]
[321459335,1712200306873,-3864.9,0.00055342,120]
[321459336,1712200306882,-954.49,0.00055342,120]
[321459337,1712200306891,-500.0,0.00055342,120]
[321459338,1712200306900,-1845.84,0.00055342,120]
[321459339,1712200306910,-534.21,0.00055342,120]
[321459340,1712200306919,-7000.0,0.00055342,120]
[321459341,1712200306928,-1293.92,0.00055342,120]
[321459342,1712200306939,-500.0,0.00055342,120]
[321459343,1712200306949,-2905.09,0.00055342,120]
[321459344,1712200306960,-500.0,0.00055342,120]
[321459345,1712200306970,-227.97356393,0.00055342,120]
[321459346,1712200306979,-647.32,0.00055342,120]
[321459347,1712200306990,-500.0,0.00055342,120]
[321459348,1712200307000,-500.0,0.00055342,120]
[321459349,1712200307011,-569.42056487,0.00055342,120]
[321459350,1712200307022,-230.324354,0.00055342,120]
[321459351,1712200307033,-2444.5,0.00055342,120]
[321459352,1712200307044,-512.99266685,0.00055342,120]
[321459353,1712200307057,-508.06164014,0.00055342,120]
[321459354,1712200307068,-5301.8,0.00055342,120]
[321459355,1712200307078,-500.0,0.00055342,120]
[321459356,1712200307089,-230.324354,0.00055342,120]
[321459357,1712200307099,-218.41150574,0.00055342,120]
[321459358,1712200307110,-500.0,0.00055342,120]
[321459359,1712200307120,-500.0,0.00055342,120]
[321459360,1712200307129,-2706.47,0.00055342,120]
[321459361,1712200307139,-534.88,0.00055342,120]
[321459362,1712200307148,-500.0,0.00055342,120]
[321459363,1712200307158,-522.35899316,0.00055342,120]
[321459364,1712200307167,-500.0,0.00055342,120]
[321459365,1712200307176,-596.6,0.00055342,120]
[321459366,1712200307185,-500.0,0.00055342,120]
[321459367,1712200307194,-500.0,0.00055342,120]
[321459368,1712200307204,-500.0,0.00055342,120]
[321459369,1712200307213,-3864.29,0.00055342,120]
[321459370,1712200307222,-1563.7,0.00055342,120]
[321459371,1712200307231,-2328.79,0.00055342,120]
[321459372,1712200307241,-500.0,0.00055342,120]
[321459373,1712200307250,-500.0,0.00055342,120]
[321459374,1712200307260,-500.0,0.00055342,120]
[321459375,1712200307269,-501.79178394,0.00055342,120]
[321459376,1712200307278,-638.42,0.00055342,120]
[321459377,1712200307287,-2730.07,0.00055342,120]
[321459378,1712200307296,-5451.86,0.00055342,120]
[321459379,1712200307306,-510.7836423,0.00055342,120]
[321459380,1712200307315,-500.0,0.00055342,120]
[321459381,1712200307324,-534.29,0.00055342,120]
[321459382,1712200307333,-694.4,0.00055342,120]
[321459383,1712200307343,-151.0,0.00055342,120]
[321459384,1712200307353,-500.0,0.00055342,30]
[321459385,1712200307362,-523.74,0.00055342,120]
[321459386,1712200307371,-544.4635724,0.00055342,120]
[321459387,1712200307380,-4099.83,0.00055342,120]
[321459388,1712200307389,-858.40166,0.00055342,30]
[321459389,1712200307398,-500.0,0.00055342,120]
[321459390,1712200307407,-846.32,0.00055342,120]
[321459391,1712200307417,-985.74,0.00055342,120]
[321459392,1712200307426,-3423.85,0.00055342,120]
[321459393,1712200307435,-500.0,0.00055342,120]
[321459394,1712200307444,-500.0,0.00055342,120]
[321459395,1712200307453,-858.40166,0.00055342,30]
[321459396,1712200307462,-4903.62,0.00055342,120]
[321459397,1712200307471,-2225.21,0.00055342,120]
[321459398,1712200307480,-500.0,0.00055342,120]
[321459399,1712200307489,-511.41498494,0.00055342,120]
[321459400,1712200307498,-299.37966071,0.00055342,120]
[321459401,1712200307507,-769.61,0.00055342,120]
[321459402,1712200307516,-511.34818304,0.00055342,120]
[321459403,1712200307526,-3165.76,0.00055342,120]
[321459404,1712200307535,-500.0,0.00055342,120]
[321459405,1712200307546,-500.0,0.00055342,120]
[321459406,1712200307558,-1040.28,0.00055342,120]
[321459407,1712200307567,-500.0,0.00055342,120]
[321459408,1712200307576,-9130.88,0.00055342,120]
[321459409,1712200307586,-5027.15,0.00055342,120]
[321459410,1712200307597,-500.0,0.00055342,120]
[321459411,1712200307606,-554.45208909,0.00055342,120]
[321459412,1712200307615,-175.0,0.00055342,120]
[321459413,1712200307626,-546.03,0.00055342,120]
[321459414,1712200307635,-2873.37,0.00055342,120]
[321459415,1712200307645,-500.0,0.00055342,120]
[321459416,1712200307654,-500.0,0.00055342,120]
[321459417,1712200307664,-705.68,0.00055342,120]
[321459418,1712200307673,-500.0,0.00055342,120]
[321459419,1712200307682,-500.0,0.00055342,120]
[321459420,1712200307691,-1850.68,0.00055342,120]
[321459421,1712200307700,-782.7,0.00055342,120]
[321459422,1712200307710,-500.0,0.00055342,120]
[321459423,1712200307719,-1606.71,0.00055342,120]
[321459424,1712200307730,-500.0,0.00055342,120]
[321459425,1712200307740,-3037.76071332,0.00055342,120]
[321459426,1712200307750,-594.92,0.00055342,120]
[321459427,1712200307760,-4035.15,0.00055342,120]
[321459428,1712200307771,-500.0,0.00055342,120]
[321459429,1712200307781,-2413.37,0.00055342,120]
[321459430,1712200307790,-542.34020319,0.00055342,120]
[321459431,1712200307800,-1349.71,0.00055342,120]
[321459432,1712200307810,-505.29598161,0.00055342,120]
[321459433,1712200307820,-551.94,0.00055342,120]
[321459434,1712200307831,-945.36,0.00055342,120]
[321459435,1712200307842,-1282.09,0.00055342,120]
[321459436,1712200307851,-836.33,0.00055342,120]
[321459437,1712200307860,-151.0,0.00055342,120]
[321459438,1712200307873,-500.0,0.00055342,120]
[321459439,1712200307883,-500.0,0.00055342,120]
[321459440,1712200307894,-1406.21,0.00055342,120]
[321459441,1712200307904,-166.42872,0.00055342,120]
[321459442,1712200307914,-946.04,0.00055342,120]
[321459443,1712200307924,-500.0,0.00055342,120]
[321459444,1712200307934,-641.98,0.00055342,120]
[321459445,1712200307946,-500.0,0.00055342,120]
[321459446,1712200307956,-898.28,0.00055342,120]
[321459447,1712200307966,-500.0,0.00055342,120]
[321459448,1712200307975,-151.0,0.00055342,120]
[321459449,1712200307985,-8609.89,0.00055342,120]
[321459450,1712200307994,-324.08593681,0.00055342,120]
[321459451,1712200308004,-627.13,0.00055342,120]
[321459452,1712200308014,-1151.94,0.00055342,120]
[321459453,1712200308024,-5468.41,0.00055342,120]
[321459454,1712200308034,-1889.11,0.00055342,120]
[321459455,1712200308044,-151.0,0.00055342,120]
[321459456,1712200308055,-151.0,0.00055342,120]
[321459457,1712200308065,-53073.95,0.00055342,120]
[321459458,1712200308075,-500.0,0.00055342,120]
[321459459,1712200308086,-525.95,0.00055342,120]
[321459460,1712200308097,-6399.43,0.00055342,120]
[321459461,1712200308108,-500.0,0.00055342,120]
[321459462,1712200308118,-645.37,0.00055342,120]
[321459463,1712200308216,-151.0,0.00055342,7]
[321459464,1712200308226,-1683.47,0.00055342,120]
[321459465,1712200308236,-500.0,0.00055342,120]
[321459466,1712200308247,-500.0,0.00055342,120]
[321459467,1712200308259,-6691.4,0.00055342,120]
[321459468,1712200308270,-611.07,0.00055342,120]
[321459469,1712200308279,-500.0,0.00055342,120]
[321459470,1712200308290,-1927.66,0.00055342,120]
[321459471,1712200308300,-5148.74,0.00055342,120]
[321459472,1712200308312,-509.18227552,0.00055342,120]
[321459473,1712200308322,-1030.18,0.00055342,120]
[321459474,1712200308333,-852.93,0.00055342,120]
[321459475,1712200308345,-604.27,0.00055342,120]
[321459476,1712200308354,-8800.38,0.00055342,120]
[321459477,1712200308364,-500.0,0.00055342,120]
[321459478,1712200308374,-1657.49,0.00055342,120]
[321459479,1712200308384,-2507.81,0.00055342,120]
[321459480,1712200308394,-614.29,0.00055342,120]
[321459481,1712200308404,-825.58,0.00055342,120]
[321459482,1712200308414,-571.44,0.00055342,120]
[321459483,1712200308424,-989.45,0.00055342,120]
[321459484,1712200308434,-500.0,0.00055342,120]
[321459485,1712200308444,-2396.3,0.00055342,120]
[321459486,1712200308455,-1134.76,0.00055342,120]
[321459487,1712200308465,-500.0,0.00055342,120]
[321459488,1712200308477,-5513.42,0.00055342,120]
[321459489,1712200308487,-1852.1,0.00055342,7]
[321459490,1712200308498,-151.0,0.00055342,120]
[321459491,1712200308506,-2968.67,0.00055342,120]
[321459492,1712200308516,-2345.81,0.00055342,120]
[321459493,1712200308526,-3000.0,0.00055342,120]
[321459494,1712200308536,-200.701774,0.00055342,120]
[321459495,1712200308547,-500.0,0.00055342,120]
[321459496,1712200308557,-1250.54,0.00055342,120]
[321459497,1712200308567,-500.0,0.00055342,120]
[321459498,1712200308577,-2079.2,0.00055342,120]
[321459499,1712200308588,-500.0,0.00055342,120]
[321459500,1712200308598,-200.701774,0.00055342,120]
[321459501,1712200308607,-500.0,0.00055342,120]
[321459502,1712200308617,-500.0,0.00055342,120]
[321459503,1712200308626,-3247.17,0.00055342,120]
[321459504,1712200308635,-500.0,0.00055342,120]
[321459505,1712200308644,-871.75,0.00055342,120]
[321459506,1712200308653,-902.7,0.00055342,120]
[321459507,1712200308663,-500.0,0.00055342,120]
[321459508,1712200308672,-15898.05,0.00055342,120]
[321459509,1712200308681,-151.0,0.00055342,120]
[321459510,1712200308690,-217.97847,0.00055342,30]
[321459511,1712200308699,-3358.82,0.00055342,120]
[321459512,1712200308708,-690.28,0.00055342,120]
[321459513,1712200308717,-3349.18,0.00055342,120]
[321459514,1712200308726,-1202.73,0.00055342,120]
[321459515,1712200308735,-217.97847,0.00055342,30]
[321459516,1712200308744,-500.0,0.00055342,120]
[321459517,1712200308753,-3733.56,0.00055342,120]
[321459518,1712200308762,-3909.57,0.00055342,120]
[321459519,1712200308771,-2507.95,0.00055342,120]
[321459520,1712200308780,-500.0,0.00055342,120]
[321459521,1712200308790,-2808.48,0.00055342,120]
[321459522,1712200308798,-551.00547665,0.00055342,120]
[321459523,1712200308807,-500.0,0.00055342,120]
[321459524,1712200308816,-556.58,0.00055342,120]
[321459525,1712200308825,-500.0,0.00055342,120]
[321459526,1712200308835,-151.0,0.00055342,120]
[321459527,1712200308845,-755.27,0.00055342,120]
[321459528,1712200308855,-522.55810925,0.00055342,120]
[321459529,1712200308867,-528.32329506,0.00055342,120]
[321459530,1712200308877,-2313.89,0.00055342,120]
[321459531,1712200308886,-2398.13,0.00055342,120]
[321459532,1712200308895,-500.0,0.00055342,120]
[321459533,1712200308905,-173.909526,0.00055342,120]